fUST/lending_fUST_20250129
["ID","MTS","AMOUNT","RATE_DAILY","PERIOD"]
[350721225,1738081841308,-202.39,0.00016438,2]
[350721226,1738081841317,-500.0,0.00016438,2]
[350721227,1738081841327,-626.6847651,0.00016438,2]
[350721228,1738081841336,-500.0,0.00016438,2]
[350721229,1738081841346,-500.0,0.00016438,2]
[350721230,1738081841356,-500.0,0.00016438,2]
[350721231,1738081841365,-290.56475633,0.00016438,2]
[350721232,1738081841378,-1086.75524367,0.00016438,2]
[350721233,1738081841387,-166.89405407,0.00016438,2]
[350721403,1738081846680,-915.02594593,0.00016438,2]
[350721404,1738081846692,-500.0,0.00016438,2]
[350721405,1738081846702,-500.0,0.00016438,2]
[350721406,1738081846711,-591.12,0.00016438,2]
[350721407,1738081846721,-500.0,0.00016438,2]
[350721408,1738081846731,-500.0,0.00016438,2]
[350721409,1738081846741,-500.0,0.00016438,2]
[350721410,1738081846750,-500.0,0.00016438,2]
[350721411,1738081846759,-500.0,0.00016438,2]
[350721412,1738081846768,-4737.7,0.00016438,2]
[350721414,1738081846778,-12109.69,0.00016438,2]
[350721416,1738081846788,-500.0,0.00016438,2]
[350721418,1738081846799,-1186.91,0.00016438,2]
[350721420,1738081846809,-537.21,0.00016438,2]
[350721422,1738081846819,-500.0,0.00016438,2]
[350721424,1738081846828,-256.89206871,0.00016438,2]
[350721426,1738081846840,-500.0,0.00016438,2]
[350721474,1738081928534,922.43452325,0.00015078,2]
[350721482,1738082392657,788.22,0.00010959,2]
[350721484,1738082544668,193.360815,0.00013973,2]
[350721485,1738082569028,715.71512332,0.00015101,2]
[350721486,1738082592276,876.78322652,0.00015101,2]
[350721487,1738082851140,-208.60264201,0.00015101,2]
[350721488,1738082851164,-87.40036001,0.00015177,2]
[350721489,1738082969150,-300.0,0.00015177,2]
[350721490,1738082969183,-6555.90198557,0.00015178,4]
[350721492,1738082974129,-9576.4228,0.00015178,4]
[350721559,1738083032030,-389.67521443,0.00015178,4]
[350721561,1738083032041,-225.69644779,0.00015448,2]
[350721603,1738083032449,-117.88016681,0.00015448,2]
[350721605,1738083032459,-300.0,0.0001548,2]
[350721607,1738083032470,-412.89562308,0.00015481,2]
[350721915,1738083037849,-2895.98661149,0.00015481,2]
[350721922,1738083037903,-785.61338616,0.00015481,2]
[350721985,1738083039965,-882.91779469,0.00015481,2]
[350721986,1738083040073,-19922.58658458,0.00015481,2]
[350721987,1738083040084,-240.180428,0.00015516,2]
[350721988,1738083040095,-10621.491304,0.00016211,2]
[350721989,1738083040104,-782.35121895,0.00016238,2]
[350721990,1738083040115,-174.29161901,0.00016338,2]
[350721991,1738083040125,-2275.22,0.000164,2]
[350721993,1738083040136,-364.51767264,0.00016438,2]
[350721994,1738083040145,-228.61031789,0.00016438,2]
[350721995,1738083040155,-500.0,0.00016438,2]
[350721996,1738083040165,-500.0,0.00016438,2]
[350721997,1738083040175,-503.61152882,0.00016438,2]
[350721998,1738083040189,-500.0,0.00016438,2]
[350721999,1738083040199,-598.24306704,0.00016438,2]
[350722000,1738083040209,-500.0,0.00016438,2]
[350722001,1738083040219,-500.0,0.00016438,2]
[350722002,1738083040228,-500.0,0.00016438,2]
[350722003,1738083040434,-500.0,0.00016438,2]
[350722004,1738083040444,-500.0,0.00016438,2]
[350722005,1738083040454,-500.0,0.00016438,2]
[350722006,1738083040464,-500.0,0.00016438,2]
[350722007,1738083040473,-500.0,0.00016438,2]
[350722008,1738083040483,-503.84730863,0.00016438,2]
[350722009,1738083040495,-272.26056296,0.00016438,2]
[350722010,1738083040504,-500.0,0.00016438,2]
[350722011,1738083040514,-500.0,0.00016438,2]
[350722012,1738083040524,-484.21608894,0.00016438,2]
[350722013,1738083040534,-192.77967057,0.00016438,2]
[350722014,1738083040543,-500.0,0.00016438,2]
[350722015,1738083040552,-500.0,0.00016438,2]
[350722016,1738083040563,-500.0,0.00016438,2]
[350722017,1738083040572,-500.0,0.00016438,2]
[350722018,1738083040582,-500.0,0.00016438,2]
[350722019,1738083040592,-500.0,0.00016438,2]
[350722020,1738083040602,-500.0,0.00016438,2]
[350722021,1738083040612,-500.0,0.00016438,2]
[350722022,1738083040622,-500.0,0.00016438,2]
[350722023,1738083040632,-500.0,0.00016438,2]
[350722024,1738083040641,-500.0,0.00016438,2]
[350722025,1738083040651,-500.0,0.00016438,2]
[350722026,1738083040661,-500.0,0.00016438,2]
[350722027,1738083040671,-500.0,0.00016438,2]
[350722028,1738083040680,-500.0,0.00016438,2]
[350722029,1738083040690,-500.0,0.00016438,2]
[350722030,1738083040700,-500.0,0.00016438,2]
[350722031,1738083040709,-500.0,0.00016438,2]
[350722032,1738083040719,-500.0,0.00016438,2]
[350722033,1738083040729,-500.0,0.00016438,2]
[350722034,1738083040739,-500.0,0.00016438,2]
[350722035,1738083040751,-500.0,0.00016438,2]
[350722036,1738083040761,-522.06,0.00016438,2]
[350722037,1738083040770,-500.0,0.00016438,2]
[350722038,1738083040780,-500.0,0.00016438,2]
[350722039,1738083040790,-500.0,0.00016438,2]
[350722040,1738083040799,-500.0,0.00016438,2]
[350722041,1738083040809,-500.0,0.00016438,2]
[350722042,1738083040819,-500.0,0.00016438,2]
[350722043,1738083040830,-500.0,0.00016438,2]
[350722044,1738083040844,-571.13292691,0.00016438,2]
[350722045,1738083040854,-500.0,0.00016438,2]
[350722046,1738083040865,-500.0,0.00016438,2]
[350722047,1738083040875,-500.0,0.00016438,2]
[350722048,1738083040888,-500.0,0.00016438,2]
[350722049,1738083040898,-500.0,0.00016438,2]
[350722050,1738083040908,-500.0,0.00016438,2]
[350722051,1738083040919,-500.0,0.00016438,2]
[350722052,1738083040929,-500.0,0.00016438,2]
[350722053,1738083040939,-191.45996291,0.00016438,2]
[350722054,1738083040950,-18.45152388,0.00016438,2]
[350722080,1738083118464,197.09762083,0.00015078,2]
[350722081,1738083131490,890.98461679,0.00015078,2]
[350722082,1738083185714,321.92394974,0.0001515,2]
[350722083,1738083369454,359.957622,0.0001515,2]
[350722084,1738083676111,182.650086,0.00013699,2]
[350722085,1738083745998,302.123781,0.00013973,2]
[350722087,1738084026127,-166.0,0.00015397,2]
[350722088,1738084026155,-300.0,0.00015444,2]
[350722089,1738084026178,-240.1804292,0.00015445,2]
[350722090,1738084026203,-544.28522915,0.00015445,2]
[350722091,1738084048117,-414.2275343,0.00015445,2]
[350722096,1738084178181,1013.0,0.000171,14]
[350722097,1738084212095,325.9044,0.0002074,120]
[350722130,1738084232502,-300.0,0.00015385,2]
[350722132,1738084232512,-24900.0,0.00015386,2]
[350722134,1738084232522,-153.216,0.0001587,2]
[350722136,1738084232532,-3999.999999,0.00016,2]
[350722138,1738084232542,-9000.0,0.00016212,2]
[350722140,1738084232551,-1000.0,0.00016322,2]
[350722142,1738084232561,-717.80829409,0.00016337,2]
[350722144,1738084232571,-151.0,0.000164,2]
[350722146,1738084232581,-1245.04555195,0.00016413,3]
[350722148,1738084232590,-500.0,0.0001643,2]
[350722150,1738084232599,-500.0,0.00016436,2]
[350722152,1738084232610,-500.0,0.00016436,2]
[350722153,1738084232620,-224.39852093,0.00016436,2]
[350722154,1738084232630,-489.26762352,0.00016436,2]
[350722155,1738084232640,-500.0,0.00016436,2]
[350722156,1738084232650,-500.0,0.00016436,2]
[350722157,1738084232659,-500.0,0.00016436,2]
[350722158,1738084232669,-500.0,0.00016436,2]
[350722159,1738084232679,-500.0,0.00016436,2]
[350722160,1738084232689,-500.0,0.00016436,2]
[350722161,1738084232698,-410.19594561,0.00016436,2]
[350722162,1738084232708,-500.0,0.00016436,2]
[350722163,1738084232717,-500.0,0.00016436,2]
[350722164,1738084232727,-500.0,0.00016436,2]
[350722165,1738084232736,-500.0,0.00016436,2]
[350722166,1738084232745,-500.0,0.00016436,2]
[350722167,1738084232755,-500.0,0.00016436,2]
[350722168,1738084232765,-500.0,0.00016437,2]
[350722169,1738084232775,-500.0,0.00016437,2]
[350722170,1738084232784,-232.62243223,0.00016437,2]
[350722171,1738084232794,-500.0,0.00016437,2]
[350722172,1738084232803,-500.0,0.00016437,2]
[350722173,1738084232813,-500.0,0.00016438,2]
[350722174,1738084232823,-500.0,0.00016438,2]
[350722175,1738084232833,-500.63777007,0.00016438,2]
[350722176,1738084232843,-500.0,0.00016438,2]
[350722177,1738084232852,-500.0,0.00016438,2]
[350722178,1738084232862,-472.16486793,0.00016438,2]
[350722179,1738084232872,-500.0,0.00016438,2]
[350722180,1738084232881,-500.0,0.00016438,2]
[350722181,1738084232891,-500.0,0.00016438,2]
[350722182,1738084232900,-500.25028113,0.00016438,2]
[350722183,1738084232910,-606.73120865,0.00016438,2]
[350722184,1738084232920,-500.0,0.00016438,2]
[350722185,1738084232930,-500.0,0.00016438,2]
[350722186,1738084232940,-500.0,0.00016438,2]
[350722187,1738084232949,-501.34467318,0.00016438,2]
[350722188,1738084232960,-151.0,0.00016438,2]
[350722189,1738084232970,-500.0,0.00016438,2]
[350722190,1738084232981,-544.19,0.00016438,2]
[350722191,1738084232991,-500.0,0.00016438,2]
[350722192,1738084233002,-151.0,0.00016438,2]
[350722193,1738084233012,-500.63505793,0.00016438,2]
[350722194,1738084233022,-500.0,0.00016438,2]
[350722195,1738084233031,-594.77925672,0.00016438,2]
[350722196,1738084233042,-495.0,0.00016438,2]
[350722197,1738084233052,-151.0,0.00016438,2]
[350722198,1738084233062,-500.0,0.00016438,2]
[350722199,1738084233072,-500.0,0.00016438,2]
[350722200,1738084233082,-500.0,0.00016438,2]
[350722201,1738084233093,-151.0,0.00016438,2]
[350722202,1738084233102,-151.0,0.00016438,2]
[350722203,1738084233113,-500.0,0.00016438,2]
[350722204,1738084233124,-500.0,0.00016438,2]
[350722205,1738084233134,-151.0,0.00016438,2]
[350722206,1738084233144,-500.0,0.00016438,2]
[350722207,1738084233154,-302.51936808,0.00016438,2]
[350722208,1738084233165,-500.0,0.00016438,2]
[350722209,1738084233175,-500.0,0.00016438,2]
[350722210,1738084233185,-500.0,0.00016438,2]
[350722211,1738084233195,-500.0,0.00016438,2]
[350722212,1738084233205,-500.0,0.00016438,2]
[350722213,1738084233215,-500.0,0.00016438,2]
[350722214,1738084233225,-500.0,0.00016438,2]
[350722215,1738084233235,-500.0,0.00016438,2]
[350722216,1738084233247,-596.88,0.00016438,2]
[350722217,1738084233258,-500.0,0.00016438,2]
[350722218,1738084233269,-521.80205614,0.00016438,2]
[350722219,1738084233279,-455.90468222,0.00016438,2]
[350722220,1738084233289,-500.0,0.00016438,2]
[350722221,1738084233421,-500.0,0.00016438,2]
[350722222,1738084233432,-500.0,0.00016438,2]
[350722223,1738084233443,-500.0,0.00016438,2]
[350722224,1738084233453,-151.0,0.00016438,2]
[350722225,1738084233464,-151.0,0.00016438,2]
[350722226,1738084233475,-500.0,0.00016438,2]
[350722227,1738084233486,-500.0,0.00016438,2]
[350722228,1738084233497,-500.0,0.00016438,2]
[350722229,1738084233507,-522.86086598,0.00016438,2]
[350722230,1738084233518,-406.2360726,0.00016438,2]
[350722231,1738084233528,-264.01,0.00016438,2]
[350722232,1738084233539,-297.22734942,0.00016438,2]
[350722233,1738084233549,-500.0,0.00016438,2]
[350722234,1738084233559,-500.0,0.00016438,2]
[350722235,1738084233571,-500.0,0.00016438,2]
[350722236,1738084233581,-500.0,0.00016438,2]
[350722237,1738084233591,-151.0,0.00016438,2]
[350722238,1738084233601,-151.0,0.00016438,2]
[350722239,1738084233614,-152.904828,0.00016438,2]
[350722240,1738084233624,-501.16203321,0.00016438,2]
[350722241,1738084233635,-500.0,0.00016438,2]
[350722242,1738084233645,-241.668256,0.00016438,2]
[350722243,1738084233655,-503.85275104,0.00016438,2]
[350722244,1738084233665,-500.0,0.00016438,2]
[350722245,1738084233675,-500.82923764,0.00016438,2]
[350722246,1738084233685,-500.0,0.00016438,2]
[350722247,1738084233695,-500.0,0.00016438,2]
[350722248,1738084233705,-504.49697437,0.00016438,2]
[350722249,1738084233715,-500.0,0.00016438,2]
[350722250,1738084233725,-500.0,0.00016438,2]
[350722251,1738084233736,-500.0,0.00016438,2]
[350722252,1738084233745,-500.0,0.00016438,2]
[350722253,1738084233755,-500.0,0.00016438,2]
[350722254,1738084233765,-500.0,0.00016438,2]
[350722255,1738084233775,-500.0,0.00016438,2]
[350722256,1738084233786,-151.0,0.00016438,2]
[350722257,1738084233796,-151.0,0.00016438,2]
[350722258,1738084233806,-500.0,0.00016438,2]
[350722259,1738084233816,-151.0,0.00016438,2]
[350722260,1738084233826,-151.0,0.00016438,2]
[350722261,1738084233836,-151.0,0.00016438,2]
[350722262,1738084233846,-151.0,0.00016438,2]
[350722263,1738084233857,-503.13950756,0.00016438,2]
[350722264,1738084233868,-500.0,0.00016438,2]
[350722265,1738084233878,-233.37150342,0.00016438,2]
[350722266,1738084233888,-500.0,0.00016438,2]
[350722267,1738084233898,-500.0,0.00016438,2]
[350722268,1738084233908,-500.0,0.00016438,2]
[350722269,1738084233918,-500.0,0.00016438,2]
[350722270,1738084233928,-500.0,0.00016438,2]
[350722271,1738084233938,-500.0,0.00016438,2]
[350722272,1738084233948,-500.0,0.00016438,2]
[350722273,1738084233959,-500.0,0.00016438,2]
[350722274,1738084233970,-228.4471342,0.00016438,2]
[350722275,1738084233980,-500.0,0.00016438,2]
[350722276,1738084233990,-500.0,0.00016438,2]
[350722277,1738084234000,-500.0,0.00016438,2]
[350722278,1738084234010,-500.0,0.00016438,2]
[350722279,1738084234020,-500.0,0.00016438,2]
[350722280,1738084234031,-500.0,0.00016438,2]
[350722281,1738084234041,-246.78418213,0.00016438,2]
[350722282,1738084234050,-151.0,0.00016438,2]
[350722283,1738084234062,-500.0,0.00016438,2]
[350722284,1738084234072,-506.00293791,0.00016438,2]
[350722285,1738084234082,-500.57867955,0.00016438,2]
[350722286,1738084234093,-509.19863349,0.00016438,2]
[350722287,1738084234103,-500.0,0.00016438,2]
[350722288,1738084234116,-151.0,0.00016438,2]
[350722289,1738084234125,-151.0,0.00016438,2]
[350722290,1738084234136,-410.44327138,0.00016438,2]
[350722291,1738084234165,-500.0,0.00016436,2]
[350722292,1738084234175,-456.49760395,0.00016436,2]
[350722293,1738084235069,-43.50239605,0.00016436,2]
[350722294,1738084235080,-500.0,0.00016436,2]
[350722295,1738084235090,-500.0,0.00016436,2]
[350722296,1738084235100,-500.0,0.00016436,2]
[350722297,1738084235113,-500.0,0.00016436,2]
[350722298,1738084235123,-89.63429149,0.00016438,2]
[350722299,1738084235133,-500.0,0.00016438,2]
[350722300,1738084235144,-500.0,0.00016438,2]
[350722301,1738084235155,-151.0,0.00016438,2]
[350722302,1738084235166,-151.0,0.00016438,2]
[350722303,1738084235177,-500.0,0.00016438,2]
[350722304,1738084235188,-500.0,0.00016438,2]
[350722305,1738084235199,-500.0,0.00016438,2]
[350722306,1738084235209,-500.0,0.00016438,2]
[350722307,1738084235220,-242.88276468,0.00016438,2]
[350722308,1738084235230,-501.0028369,0.00016438,2]
[350722309,1738084235244,-500.0,0.00016438,2]
[350722310,1738084235255,-151.0,0.00016438,2]
[350722311,1738084235265,-273.200302,0.00016438,2]
[350722312,1738084235276,-153.188739,0.00016438,2]
[350722313,1738084235288,-500.0,0.00016438,2]
[350722314,1738084235298,-500.81490185,0.00016438,2]
[350722315,1738084235307,-500.0,0.00016438,2]
[350722316,1738084235317,-411.03,0.00016438,2]
[350722317,1738084235327,-500.0,0.00016438,2]
[350722318,1738084235337,-500.0,0.00016438,2]
[350722319,1738084235346,-500.0,0.00016438,2]
[350722320,1738084235359,-500.0,0.00016438,2]
[350722321,1738084235368,-500.0,0.00016438,2]
[350722322,1738084235378,-500.0,0.00016438,2]
[350722323,1738084235388,-500.0,0.00016438,2]
[350722324,1738084235398,-500.0,0.00016438,2]
[350722325,1738084235408,-500.0,0.00016438,2]
[350722326,1738084235417,-500.0,0.00016438,2]
[350722327,1738084235427,-500.0,0.00016438,2]
[350722328,1738084235436,-500.0,0.00016438,2]
[350722329,1738084235446,-500.0,0.00016438,2]
[350722330,1738084235455,-500.0,0.00016438,2]
[350722331,1738084235465,-190.49546711,0.00016438,2]
[350722332,1738084235474,-507.11993169,0.00016438,2]
[350722333,1738084235484,-151.0,0.00016438,2]
[350722334,1738084235494,-151.0,0.00016438,2]
[350722335,1738084235504,-500.0,0.00016438,2]
[350722336,1738084235514,-500.0,0.00016438,2]
[350722337,1738084235524,-500.0,0.00016438,2]
[350722338,1738084235533,-435.84185928,0.00016438,2]
[350722339,1738084235543,-500.0,0.00016438,2]
[350722340,1738084235553,-500.0,0.00016438,2]
[350722341,1738084235563,-500.0,0.00016438,2]
[350722342,1738084235573,-151.0,0.00016438,2]
[350722343,1738084235583,-151.0,0.00016438,2]
[350722344,1738084235592,-151.0,0.00016438,2]
[350722345,1738084235602,-500.0,0.00016438,2]
[350722346,1738084235612,-151.0,0.00016438,2]
[350722347,1738084235621,-151.0,0.00016438,2]
[350722348,1738084235632,-151.0,0.00016438,2]
[350722349,1738084235643,-151.0,0.00016438,2]
[350722350,1738084235652,-151.0,0.00016438,2]
[350722351,1738084235662,-151.0,0.00016438,2]
[350722352,1738084235672,-151.0,0.00016438,2]
[350722353,1738084235681,-300.533586,0.00016438,2]
[350722354,1738084235691,-500.0,0.00016438,2]
[350722355,1738084235700,-500.0,0.00016438,2]
[350722356,1738084235709,-500.0,0.00016438,2]
[350722357,1738084235718,-551.01191986,0.00016438,2]
[350722358,1738084235727,-500.0,0.00016438,2]
[350722359,1738084235737,-500.0,0.00016438,2]
[350722360,1738084235747,-500.0,0.00016438,2]
[350722361,1738084235757,-851.97,0.00016438,2]
[350722362,1738084235767,-500.0,0.00016438,2]
[350722363,1738084235777,-500.0,0.00016438,2]
[350722364,1738084235787,-151.0,0.00016438,2]
[350722365,1738084235797,-500.0,0.00016438,2]
[350722366,1738084235807,-151.0,0.00016438,2]
[350722367,1738084235817,-500.0,0.00016438,2]
[350722368,1738084235827,-500.0,0.00016438,2]
[350722369,1738084235838,-623.28205141,0.00016438,2]
[350722370,1738084235849,-500.0,0.00016438,2]
[350722371,1738084235862,-500.0,0.00016438,2]
[350722372,1738084235872,-553.9,0.00016438,2]
[350722373,1738084235880,-863.756561,0.00016438,2]
[350722374,1738084235890,-500.0,0.00016438,2]
[350722375,1738084235899,-863.756561,0.00016438,2]
[350722376,1738084235909,-863.756561,0.00016438,2]
[350722377,1738084235919,-500.0,0.00016438,2]
[350722378,1738084235929,-500.0,0.00016438,2]
[350722379,1738084235939,-500.0,0.00016438,2]
[350722380,1738084235948,-500.0,0.00016438,2]
[350722381,1738084235958,-500.0,0.00016438,2]
[350722382,1738084235968,-863.756561,0.00016438,2]
[350722383,1738084235978,-425.30040088,0.00016438,2]
[350722384,1738084235988,-863.756561,0.00016438,2]
[350722385,1738084235998,-151.0,0.00016438,2]
[350722386,1738084236009,-863.756561,0.00016438,2]
[350722387,1738084236019,-151.0,0.00016438,2]
[350722388,1738084236028,-151.0,0.00016438,2]
[350722389,1738084236040,-500.0,0.00016438,2]
[350722390,1738084236050,-279.97788,0.00016438,2]
[350722391,1738084236061,-500.0,0.00016438,2]
[350722392,1738084236071,-500.44987244,0.00016438,2]
[350722393,1738084236187,-500.0,0.00016438,2]
[350722394,1738084236220,-647.35,0.00016438,2]
[350722395,1738084236231,-500.0,0.00016438,2]
[350722396,1738084236243,-500.0,0.00016438,2]
[350722397,1738084236257,-500.0,0.00016438,2]
[350722398,1738084236268,-500.0,0.00016438,2]
[350722399,1738084236279,-151.0,0.00016438,2]
[350722400,1738084236289,-151.0,0.00016438,2]
[350722401,1738084236299,-500.83680711,0.00016438,2]
[350722402,1738084236311,-500.0,0.00016438,2]
[350722403,1738084236321,-501.48189135,0.00016438,2]
[350722404,1738084236332,-386.46625524,0.00016438,2]
[350722405,1738084236343,-500.0,0.00016438,2]
[350722406,1738084236354,-2483.61,0.00016438,2]
[350722407,1738084236370,-591.09,0.00016438,2]
[350722408,1738084236381,-180.62,0.00016438,2]
[350722409,1738084236392,-500.0,0.00016438,2]
[350722410,1738084236402,-500.0,0.00016438,2]
[350722411,1738084236412,-151.0,0.00016438,2]
[350722412,1738084236423,-151.0,0.00016438,2]
[350722413,1738084236432,-151.0,0.00016438,2]
[350722414,1738084236443,-151.0,0.00016438,2]
[350722415,1738084236454,-151.0,0.00016438,2]
[350722416,1738084236464,-151.0,0.00016438,2]
[350722417,1738084236474,-500.0,0.00016438,2]
[350722418,1738084236484,-541.74,0.00016438,2]
[350722419,1738084236494,-500.0,0.00016438,2]
[350722420,1738084236505,-500.0,0.00016438,2]
[350722421,1738084236514,-500.0,0.00016438,2]
[350722422,1738084236524,-154.826094,0.00016438,2]
[350722423,1738084236534,-154.826094,0.00016438,2]
[350722424,1738084236543,-154.826094,0.00016438,2]
[350722425,1738084236554,-189.29165715,0.00016438,2]
[350722426,1738084236564,-500.0,0.00016438,2]
[350722427,1738084236574,-500.0,0.00016438,2]
[350722428,1738084236584,-154.826094,0.00016438,2]
[350722429,1738084236593,-154.826094,0.00016438,2]
[350722430,1738084236603,-154.826094,0.00016438,2]
[350722431,1738084236616,-500.0,0.00016438,2]
[350722432,1738084236625,-500.0,0.00016438,2]
[350722433,1738084236635,-500.0,0.00016438,2]
[350722434,1738084236645,-500.0,0.00016438,2]
[350722435,1738084236655,-500.0,0.00016438,2]
[350722436,1738084236665,-4170.5,0.00016438,2]
[350722437,1738084236674,-541.74,0.00016438,2]
[350722438,1738084236684,-500.0,0.00016438,2]
[350722439,1738084236694,-690.706677,0.00016438,2]
[350722440,1738084236705,-690.706677,0.00016438,2]
[350722441,1738084236716,-151.0,0.00016438,2]
[350722442,1738084236726,-690.706677,0.00016438,2]
[350722443,1738084236735,-151.0,0.00016438,2]
[350722444,1738084236745,-151.0,0.00016438,2]
[350722445,1738084236755,-500.0,0.00016438,2]
[350722446,1738084236764,-500.0,0.00016438,2]
[350722447,1738084236773,-690.706677,0.00016438,2]
[350722448,1738084236783,-690.706677,0.00016438,2]
[350722449,1738084236793,-690.706677,0.00016438,2]
[350722450,1738084236802,-151.0,0.00016438,2]
[350722451,1738084236812,-151.0,0.00016438,2]
[350722452,1738084236821,-500.0,0.00016438,2]
[350722453,1738084236832,-500.0,0.00016438,2]
[350722454,1738084236842,-151.0,0.00016438,2]
[350722455,1738084236852,-500.0,0.00016438,2]
[350722456,1738084236863,-151.0,0.00016438,2]
[350722457,1738084236873,-151.0,0.00016438,2]
[350722458,1738084236884,-165.71478,0.00016438,2]
[350722459,1738084236894,-5969.27,0.00016438,2]
[350722460,1738084236905,-151.0,0.00016438,2]
[350722461,1738084236915,-151.0,0.00016438,2]
[350722462,1738084236924,-151.0,0.00016438,2]
[350722463,1738084236934,-151.0,0.00016438,2]
[350722464,1738084236944,-151.0,0.00016438,2]
[350722465,1738084236954,-567.10363436,0.00016438,2]
[350722466,1738084236963,-500.0,0.00016438,2]
[350722467,1738084236974,-151.0,0.00016438,2]
[350722468,1738084236983,-500.0,0.00016438,2]
[350722469,1738084236993,-500.0,0.00016438,2]
[350722470,1738084237009,-500.0,0.00016438,2]
[350722471,1738084237023,-500.0,0.00016438,2]
[350722472,1738084237032,-500.0,0.00016438,2]
[350722473,1738084237042,-500.0,0.00016438,2]
[350722474,1738084237051,-500.0,0.00016438,2]
[350722475,1738084237061,-467.532371,0.00016438,2]
[350722476,1738084237071,-500.0,0.00016438,2]
[350722477,1738084237081,-500.0,0.00016438,2]
[350722478,1738084237090,-151.0,0.00016438,2]
[350722479,1738084237100,-151.0,0.00016438,2]
[350722480,1738084237111,-151.0,0.00016438,2]
[350722481,1738084237120,-666.23,0.00016438,2]
[350722482,1738084237129,-1903.46,0.00016438,2]
[350722483,1738084237139,-500.0,0.00016438,2]
[350722484,1738084237149,-500.0,0.00016438,2]
[350722485,1738084237158,-239.260825,0.00016438,2]
[350722486,1738084237168,-239.260825,0.00016438,2]
[350722487,1738084237182,-239.260825,0.00016438,2]
[350722488,1738084237198,-1463.78,0.00016438,2]
[350722489,1738084237213,-239.260825,0.00016438,2]
[350722490,1738084237226,-239.260825,0.00016438,2]
[350722491,1738084237240,-239.260825,0.00016438,2]
[350722492,1738084237255,-500.0,0.00016438,2]
[350722493,1738084237270,-500.0,0.00016438,2]
[350722494,1738084237285,-500.0,0.00016438,2]
[350722495,1738084237301,-1278.03,0.00016438,2]
[350722496,1738084237318,-500.0,0.00016438,2]
[350722497,1738084237333,-723.37,0.00016438,2]
[350722498,1738084237348,-500.0,0.00016438,2]
[350722499,1738084237367,-318.131226,0.00016438,2]
[350722500,1738084237381,-318.131226,0.00016438,2]
[350722501,1738084237395,-318.131226,0.00016438,2]
[350722502,1738084237408,-318.131226,0.00016438,2]
[350722503,1738084237424,-318.131226,0.00016438,2]
[350722504,1738084237439,-318.131226,0.00016438,2]
[350722505,1738084237452,-500.0,0.00016438,2]
[350722506,1738084237466,-500.0,0.00016438,2]
[350722507,1738084237478,-564.02,0.00016438,2]
[350722509,1738084237491,-500.0,0.00016438,2]
[350722510,1738084237508,-229.79198627,0.00016438,2]
[350722512,1738084237524,-500.0,0.00016438,2]
[350722515,1738084237538,-500.0,0.00016438,2]
[350722517,1738084237553,-500.0,0.00016438,2]
[350722518,1738084237568,-500.0,0.00016438,2]
[350722519,1738084237584,-500.0,0.00016438,2]
[350722520,1738084237599,-500.0,0.00016438,2]